[Event "Titled Tuesday Blitz November 07 Late 2023"]
[White "Kokoszczynski, Jan"]
[Black "Arnold, Ken"]
[WhiteFideId "1174460"]
[BlackFideId "2056836"]
[WhiteElo "2603"]
[BlackElo "2415"]
[Result "1-0"]
[Round "3"]
[TimeControl "180+1"]
[Date "2023.11.07"]
[WhiteClock "0:01:04"]
[BlackClock "0:00:27"]
[Board "90"]

1. Nf3 {[%clk 0:03:00]}  d5 {[%clk 0:02:58]} 2. g3 {[%clk 0:03:01]}  Nd7 {[%clk 0:02:50]} 3. d4 {[%clk 0:03:00]}  c6 {[%clk 0:02:50]} 4. Bg2 {[%clk 0:03:00]}  Ngf6 {[%clk 0:02:48]} 5. O-O {[%clk 0:03:01]}  g6 {[%clk 0:02:48]} 6. c4 {[%clk 0:02:59]}  Bg7 {[%clk 0:02:47]} 7. Nbd2 {[%clk 0:02:56]}  O-O {[%clk 0:02:47]} 8. b3 {[%clk 0:02:54]}  Nb6 {[%clk 0:02:46]} 9. Bb2 {[%clk 0:02:53]}  Bf5 {[%clk 0:02:46]} 10. Rc1 {[%clk 0:02:44]}  Ne4 {[%clk 0:02:44]} 11. Nh4 {[%clk 0:02:41]}  Nxd2 {[%clk 0:02:35]} 12. Qxd2 {[%clk 0:02:42]}  Be6 {[%clk 0:02:32]} 13. cxd5 {[%clk 0:02:33]}  Nxd5 {[%clk 0:02:21]} 14. e4 {[%clk 0:02:30]}  Nf6 {[%clk 0:02:20]} 15. Rfe1 {[%clk 0:02:27]}  Qd7 {[%clk 0:02:19]} 16. Nf3 {[%clk 0:02:25]}  Ne8 {[%clk 0:02:03]} 17. Ng5 {[%clk 0:02:13]}  Rd8 {[%clk 0:01:55]} 18. Nxe6 {[%clk 0:02:12]}  Qxe6 {[%clk 0:01:54]} 19. Qe3 {[%clk 0:02:08]}  Nd6 {[%clk 0:01:38]} 20. d5 {[%clk 0:01:38]}  cxd5 {[%clk 0:01:35]} 21. Bxg7 {[%clk 0:01:39]}  Kxg7 {[%clk 0:01:33]} 22. Qd4+ {[%clk 0:01:38]}  Kg8 {[%clk 0:01:17]} 23. exd5 {[%clk 0:01:34]}  Nb5 {[%clk 0:00:59]} 24. dxe6 {[%clk 0:01:26]}  Rxd4 {[%clk 0:00:51]} 25. exf7+ {[%clk 0:01:26]}  Rxf7 {[%clk 0:00:49]} 26. Re2 {[%clk 0:01:16]}  a6 {[%clk 0:00:44]} 27. Bxb7 {[%clk 0:01:14]}  a5 {[%clk 0:00:38]} 28. Rc5 {[%clk 0:01:05]}  Nd6 {[%clk 0:00:27]} 29. Bd5 {[%clk 0:01:04]} 1-0


[Site "https://www.chess.com"]

[Event "Titled Tuesday Blitz November 07 Late 2023"]
[White "Real_taiatai"]
[Black "Principe, Gerson"]
[BlackFideId "3804550"]
[WhiteElo "2414"]
[BlackElo "2602"]
[Result "0-1"]
[Round "3"]
[TimeControl "180+1"]
[Date "2023.11.07"]
[WhiteClock "0:00:16"]
[BlackClock "0:00:34"]
[Board "91"]

1. d4 {[%clk 0:03:00]}  Nf6 {[%clk 0:02:58]} 2. Nf3 {[%clk 0:03:01]}  e6 {[%clk 0:02:58]} 3. Bg5 {[%clk 0:03:01]}  d5 {[%clk 0:02:58]} 4. Nbd2 {[%clk 0:03:01]}  h6 {[%clk 0:02:58]} 5. Bh4 {[%clk 0:03:00]}  Nbd7 {[%clk 0:02:55]} 6. e3 {[%clk 0:03:00]}  Be7 {[%clk 0:02:55]} 7. Bd3 {[%clk 0:02:59]}  b6 {[%clk 0:02:55]} 8. Qe2 {[%clk 0:02:58]}  Bb7 {[%clk 0:02:55]} 9. c3 {[%clk 0:02:58]}  c5 {[%clk 0:02:56]} 10. Rd1 {[%clk 0:02:58]}  O-O {[%clk 0:02:55]} 11. O-O {[%clk 0:02:57]}  Rc8 {[%clk 0:02:55]} 12. Rfe1 {[%clk 0:02:50]}  Ne4 {[%clk 0:02:50]} 13. Bxe7 {[%clk 0:02:50]}  Qxe7 {[%clk 0:02:51]} 14. dxc5 {[%clk 0:02:44]}  Ndxc5 {[%clk 0:02:50]} 15. Bb1 {[%clk 0:02:43]}  Rfd8 {[%clk 0:02:41]} 16. Nxe4 {[%clk 0:02:42]}  dxe4 {[%clk 0:02:38]} 17. Nd4 {[%clk 0:02:31]}  Ba6 {[%clk 0:02:35]} 18. Qg4 {[%clk 0:02:27]}  f5 {[%clk 0:02:33]} 19. Qg6 {[%clk 0:02:23]}  Rf8 {[%clk 0:02:21]} 20. b4 {[%clk 0:02:13]}  Rf6 {[%clk 0:02:20]} 21. Qg3 {[%clk 0:02:10]}  Na4 {[%clk 0:02:17]} 22. b5 {[%clk 0:01:28]}  Bb7 {[%clk 0:02:08]} 23. Nc6 {[%clk 0:01:28]}  Bxc6 {[%clk 0:02:01]} 24. bxc6 {[%clk 0:01:29]}  Rxc6 {[%clk 0:01:52]} 25. Qe5 {[%clk 0:01:15]}  Nxc3 {[%clk 0:01:41]} 26. Rd2 {[%clk 0:00:59]}  Qc7 {[%clk 0:01:32]} 27. Qd4 {[%clk 0:00:50]}  Nd5 {[%clk 0:01:19]} 28. f3 {[%clk 0:00:45]}  exf3 {[%clk 0:01:17]} 29. gxf3 {[%clk 0:00:44]}  Rc4 {[%clk 0:01:15]} 30. Qb2 {[%clk 0:00:40]}  Rg6+ {[%clk 0:01:11]} 31. Kh1 {[%clk 0:00:41]}  Rb4 {[%clk 0:00:59]} 32. Qa3 {[%clk 0:00:31]}  Qc3 {[%clk 0:00:53]} 33. Qxc3 {[%clk 0:00:25]}  Nxc3 {[%clk 0:00:54]} 34. Bd3 {[%clk 0:00:22]}  Rf6 {[%clk 0:00:51]} 35. Rc1 {[%clk 0:00:21]}  Nd5 {[%clk 0:00:51]} 36. e4 {[%clk 0:00:20]}  Nf4 {[%clk 0:00:46]} 37. exf5 {[%clk 0:00:19]}  Nxd3 {[%clk 0:00:45]} 38. Rc8+ {[%clk 0:00:19]}  Kh7 {[%clk 0:00:43]} 39. Rxd3 {[%clk 0:00:19]}  Rxf5 {[%clk 0:00:39]} 40. Rc7 {[%clk 0:00:19]}  Ra4 {[%clk 0:00:36]} 41. a3 {[%clk 0:00:18]}  Rg5 {[%clk 0:00:34]} 42. h4 {[%clk 0:00:16]}  Rxh4# {[%clk 0:00:34]} 0-1


[Site "https://www.chess.com"]

[Event "Titled Tuesday Blitz November 07 Late 2023"]
[White "UK_23"]
[Black "Colas, Joshua"]
[BlackFideId "2044447"]
[WhiteElo "2409"]
[BlackElo "2593"]
[Result "1-0"]
[Round "3"]
[TimeControl "180+1"]
[Date "2023.11.07"]
[WhiteClock "0:02:04"]
[BlackClock "0:01:17"]
[Board "94"]

1. e4 {[%clk 0:03:00]}  g6 {[%clk 0:02:53]} 2. d4 {[%clk 0:03:00]}  Bg7 {[%clk 0:02:42]} 3. c3 {[%clk 0:02:58]}  d6 {[%clk 0:02:39]} 4. Bd3 {[%clk 0:02:58]}  Nf6 {[%clk 0:02:34]} 5. Nf3 {[%clk 0:02:53]}  O-O {[%clk 0:02:34]} 6. O-O {[%clk 0:02:54]}  c5 {[%clk 0:02:30]} 7. dxc5 {[%clk 0:02:52]}  dxc5 {[%clk 0:02:09]} 8. Bg5 {[%clk 0:02:37]}  Nc6 {[%clk 0:02:04]} 9. Qc2 {[%clk 0:02:35]}  Bg4 {[%clk 0:02:04]} 10. Nbd2 {[%clk 0:02:33]}  h6 {[%clk 0:02:03]} 11. Bh4 {[%clk 0:02:32]}  g5 {[%clk 0:02:04]} 12. Bg3 {[%clk 0:02:32]}  Nh5 {[%clk 0:02:04]} 13. Rfe1 {[%clk 0:02:30]}  Nxg3 {[%clk 0:02:03]} 14. hxg3 {[%clk 0:02:30]}  Qc7 {[%clk 0:01:55]} 15. a4 {[%clk 0:02:30]}  Rad8 {[%clk 0:01:55]} 16. Nc4 {[%clk 0:02:29]}  Qc8 {[%clk 0:01:32]} 17. Ne3 {[%clk 0:02:26]}  Bxf3 {[%clk 0:01:32]} 18. gxf3 {[%clk 0:02:25]}  Ne5 {[%clk 0:01:33]} 19. Be2 {[%clk 0:02:24]}  Qh3 {[%clk 0:01:34]} 20. Rad1 {[%clk 0:02:15]}  e6 {[%clk 0:01:23]} 21. Rxd8 {[%clk 0:02:13]}  Rxd8 {[%clk 0:01:24]} 22. Rd1 {[%clk 0:02:13]}  Rc8 {[%clk 0:01:24]} 23. Nc4 {[%clk 0:02:05]}  h5 {[%clk 0:01:22]} 24. Nxe5 {[%clk 0:02:03]}  Bxe5 {[%clk 0:01:17]} 25. Bf1 {[%clk 0:02:04]} 1-0


[Site "https://www.chess.com"]

[Event "Titled Tuesday Blitz November 07 Late 2023"]
[White "Atanasov, Anthony"]
[Black "Prithu Gupta"]
[WhiteFideId "2623897"]
[BlackFideId "46618546"]
[WhiteElo "2589"]
[BlackElo "2368"]
[Result "1-0"]
[Round "3"]
[TimeControl "180+1"]
[Date "2023.11.07"]
[WhiteClock "0:00:43"]
[BlackClock "0:00:00"]
[Board "100"]

1. d4 {[%clk 0:03:00]}  Nf6 {[%clk 0:02:45]} 2. Nf3 {[%clk 0:02:59]}  d5 {[%clk 0:02:40]} 3. Bf4 {[%clk 0:02:57]}  Bg4 {[%clk 0:02:14]} 4. Ne5 {[%clk 0:02:56]}  Nbd7 {[%clk 0:02:13]} 5. Nxg4 {[%clk 0:02:55]}  Nxg4 {[%clk 0:02:10]} 6. e4 {[%clk 0:02:56]}  Ngf6 {[%clk 0:01:58]} 7. e5 {[%clk 0:02:56]}  Ng8 {[%clk 0:01:58]} 8. e6 {[%clk 0:02:47]}  fxe6 {[%clk 0:01:57]} 9. Nc3 {[%clk 0:02:47]}  g6 {[%clk 0:01:56]} 10. h4 {[%clk 0:02:45]}  Bg7 {[%clk 0:01:47]} 11. h5 {[%clk 0:02:44]}  c5 {[%clk 0:01:47]} 12. hxg6 {[%clk 0:02:41]}  cxd4 {[%clk 0:01:41]} 13. Nb5 {[%clk 0:02:06]}  e5 {[%clk 0:01:40]} 14. Rxh7 {[%clk 0:02:01]}  Rxh7 {[%clk 0:00:55]} 15. gxh7 {[%clk 0:02:02]}  Ngf6 {[%clk 0:00:55]} 16. Bh6 {[%clk 0:01:58]}  Kf7 {[%clk 0:00:53]} 17. Qd2 {[%clk 0:01:47]}  Ne4 {[%clk 0:00:42]} 18. Bxg7 {[%clk 0:01:30]}  Kxg7 {[%clk 0:00:33]} 19. Qb4 {[%clk 0:01:18]}  a6 {[%clk 0:00:15]} 20. Na3 {[%clk 0:01:12]}  Rc8 {[%clk 0:00:07]} 21. O-O-O {[%clk 0:01:07]}  Nxf2 {[%clk 0:00:04]} 22. Rd2 {[%clk 0:01:01]}  Ne4 {[%clk 0:00:02]} 23. Rd3 {[%clk 0:00:58]}  Qf8 {[%clk 0:00:03]} 24. Rf3 {[%clk 0:00:52]}  Ndf6 {[%clk 0:00:02]} 25. Qxb7 {[%clk 0:00:52]}  Kxh7 {[%clk 0:00:02]} 26. Bd3 {[%clk 0:00:49]}  Qh6+ {[%clk 0:00:00]} 27. Kb1 {[%clk 0:00:43]} 1-0


[Site "https://www.chess.com"]

[Event "Titled Tuesday Blitz November 07 Late 2023"]
[White "Shapiro, Daniel"]
[Black "Tologon tegin, Semetei"]
[WhiteFideId "2001780"]
[BlackFideId "13800574"]
[WhiteElo "2342"]
[BlackElo "2576"]
[Result "0-1"]
[Round "3"]
[TimeControl "180+1"]
[Date "2023.11.07"]
[WhiteClock "0:00:23"]
[BlackClock "0:01:05"]
[Board "102"]

1. d4 {[%clk 0:03:00]}  Nc6 {[%clk 0:02:59]} 2. d5 {[%clk 0:02:50]}  Ne5 {[%clk 0:02:56]} 3. Nf3 {[%clk 0:02:49]}  Nxf3+ {[%clk 0:02:55]} 4. gxf3 {[%clk 0:02:49]}  e6 {[%clk 0:02:53]} 5. c4 {[%clk 0:02:45]}  Nf6 {[%clk 0:02:46]} 6. a3 {[%clk 0:02:42]}  exd5 {[%clk 0:02:44]} 7. cxd5 {[%clk 0:02:42]}  Bc5 {[%clk 0:02:44]} 8. Nc3 {[%clk 0:02:40]}  d6 {[%clk 0:02:43]} 9. e4 {[%clk 0:02:39]}  O-O {[%clk 0:02:42]} 10. Rg1 {[%clk 0:02:27]}  Re8 {[%clk 0:02:42]} 11. Bg5 {[%clk 0:02:24]}  Kf8 {[%clk 0:02:26]} 12. Qd2 {[%clk 0:02:23]}  h6 {[%clk 0:02:25]} 13. Bh4 {[%clk 0:01:54]}  Nxe4 {[%clk 0:02:18]} 14. Bxd8 {[%clk 0:01:02]}  Nxd2+ {[%clk 0:02:17]} 15. Kxd2 {[%clk 0:01:03]}  Rxd8 {[%clk 0:02:17]} 16. Nb5 {[%clk 0:00:58]}  c6 {[%clk 0:02:12]} 17. Nc3 {[%clk 0:00:38]}  Bxf2 {[%clk 0:02:10]} 18. Rg2 {[%clk 0:00:39]}  Bd4 {[%clk 0:02:10]} 19. Rc1 {[%clk 0:00:37]}  Bh3 {[%clk 0:02:05]} 20. Rg3 {[%clk 0:00:35]}  Bxf1 {[%clk 0:02:03]} 21. Rxf1 {[%clk 0:00:36]}  Rac8 {[%clk 0:01:59]} 22. f4 {[%clk 0:00:29]}  Bxc3+ {[%clk 0:01:54]} 23. Rxc3 {[%clk 0:00:29]}  cxd5 {[%clk 0:01:54]} 24. Rd3 {[%clk 0:00:28]}  Rc5 {[%clk 0:01:48]} 25. Rd1 {[%clk 0:00:27]}  a5 {[%clk 0:01:42]} 26. Ke3 {[%clk 0:00:27]}  Re8+ {[%clk 0:01:39]} 27. Kf3 {[%clk 0:00:27]}  Ke7 {[%clk 0:01:29]} 28. Rxd5 {[%clk 0:00:27]}  Rxd5 {[%clk 0:01:28]} 29. Rxd5 {[%clk 0:00:26]}  b6 {[%clk 0:01:29]} 30. Rb5 {[%clk 0:00:25]}  Rb8 {[%clk 0:01:29]} 31. b4 {[%clk 0:00:25]}  axb4 {[%clk 0:01:28]} 32. axb4 {[%clk 0:00:26]}  Kd7 {[%clk 0:01:29]} 33. Ke4 {[%clk 0:00:25]}  Kc6 {[%clk 0:01:29]} 34. Rf5 {[%clk 0:00:25]}  f6 {[%clk 0:01:27]} 35. Rh5 {[%clk 0:00:26]}  Re8+ {[%clk 0:01:14]} 36. Kd4 {[%clk 0:00:26]}  b5 {[%clk 0:01:13]} 37. Rh3 {[%clk 0:00:25]}  f5 {[%clk 0:01:11]} 38. Rc3+ {[%clk 0:00:25]}  Kd7 {[%clk 0:01:11]} 39. Kd5 {[%clk 0:00:25]}  Re4 {[%clk 0:01:09]} 40. Rc6 {[%clk 0:00:25]}  Rd4+ {[%clk 0:01:09]} 41. Kxd4 {[%clk 0:00:26]}  Kxc6 {[%clk 0:01:10]} 42. h4 {[%clk 0:00:26]}  g6 {[%clk 0:01:09]} 43. Ke3 {[%clk 0:00:24]}  Kd5 {[%clk 0:01:06]} 44. Kd3 {[%clk 0:00:23]}  h5 {[%clk 0:01:05]} 0-1


[Site "https://www.chess.com"]

[Event "Titled Tuesday Blitz November 07 Late 2023"]
[White "Fernandez Bustamante, Leancy B."]
[Black "The_Straightforward_Rook"]
[WhiteFideId "3523870"]
[WhiteElo "2341"]
[BlackElo "2573"]
[Result "0-1"]
[Round "3"]
[TimeControl "180+1"]
[Date "2023.11.07"]
[WhiteClock "0:00:00"]
[BlackClock "0:00:47"]
[Board "103"]

1. e4 {[%clk 0:03:00]}  e5 {[%clk 0:02:59]} 2. Nf3 {[%clk 0:03:00]}  Nc6 {[%clk 0:02:56]} 3. Nc3 {[%clk 0:03:00]}  Nf6 {[%clk 0:02:56]} 4. Bb5 {[%clk 0:03:00]}  Bd6 {[%clk 0:02:56]} 5. d4 {[%clk 0:02:57]}  Nxd4 {[%clk 0:02:43]} 6. Nxd4 {[%clk 0:02:56]}  exd4 {[%clk 0:02:44]} 7. Qxd4 {[%clk 0:02:56]}  O-O {[%clk 0:02:43]} 8. Bg5 {[%clk 0:02:50]}  Re8 {[%clk 0:02:38]} 9. Bxf6 {[%clk 0:02:47]}  Qxf6 {[%clk 0:02:39]} 10. Qxf6 {[%clk 0:02:47]}  gxf6 {[%clk 0:02:40]} 11. O-O-O {[%clk 0:02:39]}  a6 {[%clk 0:02:39]} 12. Bd3 {[%clk 0:02:37]}  b5 {[%clk 0:02:24]} 13. Nd5 {[%clk 0:02:33]}  Kg7 {[%clk 0:02:25]} 14. Ne3 {[%clk 0:02:32]}  Bc5 {[%clk 0:02:21]} 15. Nf5+ {[%clk 0:02:30]}  Kf8 {[%clk 0:02:22]} 16. f3 {[%clk 0:02:24]}  d6 {[%clk 0:02:21]} 17. Ng3 {[%clk 0:02:16]}  Be6 {[%clk 0:02:02]} 18. Kb1 {[%clk 0:02:14]}  Rad8 {[%clk 0:02:01]} 19. Rhe1 {[%clk 0:02:11]}  Bc8 {[%clk 0:01:57]} 20. Nh5 {[%clk 0:02:07]}  Re6 {[%clk 0:01:49]} 21. Nf4 {[%clk 0:02:01]}  Re5 {[%clk 0:01:46]} 22. Nd5 {[%clk 0:02:01]}  c6 {[%clk 0:01:39]} 23. Nxf6 {[%clk 0:01:53]}  Kg7 {[%clk 0:01:39]} 24. f4 {[%clk 0:01:41]}  Kxf6 {[%clk 0:01:19]} 25. fxe5+ {[%clk 0:01:41]}  Kxe5 {[%clk 0:01:19]} 26. Rf1 {[%clk 0:01:37]}  f6 {[%clk 0:01:19]} 27. h3 {[%clk 0:01:13]}  h5 {[%clk 0:01:18]} 28. Be2 {[%clk 0:01:12]}  h4 {[%clk 0:01:17]} 29. Rf3 {[%clk 0:01:11]}  Rg8 {[%clk 0:01:16]} 30. Bf1 {[%clk 0:01:02]}  Rg6 {[%clk 0:01:09]} 31. c3 {[%clk 0:01:00]}  a5 {[%clk 0:01:03]} 32. Kc2 {[%clk 0:01:00]}  b4 {[%clk 0:01:02]} 33. Rd2 {[%clk 0:00:49]}  Be6 {[%clk 0:01:00]} 34. c4 {[%clk 0:00:40]}  Bd4 {[%clk 0:00:56]} 35. Rfd3 {[%clk 0:00:37]}  c5 {[%clk 0:00:57]} 36. Rf3 {[%clk 0:00:23]}  a4 {[%clk 0:00:56]} 37. b3 {[%clk 0:00:17]}  a3 {[%clk 0:00:56]} 38. Rd1 {[%clk 0:00:15]}  f5 {[%clk 0:00:55]} 39. exf5 {[%clk 0:00:14]}  Bxf5+ {[%clk 0:00:56]} 40. Kc1 {[%clk 0:00:13]}  Be4 {[%clk 0:00:52]} 41. Rf8 {[%clk 0:00:07]}  Be3+ {[%clk 0:00:51]} 42. Rd2 {[%clk 0:00:03]}  Bxd2+ {[%clk 0:00:51]} 43. Kxd2 {[%clk 0:00:04]}  Bxg2 {[%clk 0:00:52]} 44. Re8+ {[%clk 0:00:03]}  Kd4 {[%clk 0:00:52]} 45. Be2 {[%clk 0:00:02]}  Bxh3 {[%clk 0:00:47]} 46. Bf3 {[%clk 0:00:01]}  Bf5 {[%clk 0:00:47]} 47. Rf8 {[%clk 0:00:00]}  Bb1 {[%clk 0:00:47]} 0-1


[Site "https://www.chess.com"]

[Event "Titled Tuesday Blitz November 07 Late 2023"]
[White "Gimenez Aguirre, Alejo Ismael"]
[Black "MariusBieliauskas"]
[WhiteFideId "32041667"]
[WhiteElo "2570"]
[BlackElo "2347"]
[Result "1-0"]
[Round "3"]
[TimeControl "180+1"]
[Date "2023.11.07"]
[WhiteClock "0:00:28"]
[BlackClock "0:00:00"]
[Board "104"]

1. e4 {[%clk 0:03:00]}  e6 {[%clk 0:02:59]} 2. d4 {[%clk 0:03:00]}  d5 {[%clk 0:02:59]} 3. Nd2 {[%clk 0:03:00]}  c5 {[%clk 0:02:59]} 4. Ngf3 {[%clk 0:03:00]}  Nc6 {[%clk 0:02:58]} 5. exd5 {[%clk 0:02:57]}  Qxd5 {[%clk 0:02:53]} 6. Bc4 {[%clk 0:02:56]}  Qd8 {[%clk 0:02:47]} 7. dxc5 {[%clk 0:02:48]}  Bxc5 {[%clk 0:02:45]} 8. O-O {[%clk 0:02:48]}  Nf6 {[%clk 0:02:43]} 9. Qe2 {[%clk 0:02:48]}  O-O {[%clk 0:02:43]} 10. Rd1 {[%clk 0:02:48]}  Qc7 {[%clk 0:02:34]} 11. c3 {[%clk 0:02:48]}  b6 {[%clk 0:02:32]} 12. Ne4 {[%clk 0:02:46]}  Nxe4 {[%clk 0:02:29]} 13. Qxe4 {[%clk 0:02:47]}  Bb7 {[%clk 0:02:21]} 14. Bf4 {[%clk 0:02:46]}  Qc8 {[%clk 0:02:11]} 15. Ng5 {[%clk 0:02:44]}  g6 {[%clk 0:02:11]} 16. Qf3 {[%clk 0:02:30]}  e5 {[%clk 0:01:58]} 17. Nxf7 {[%clk 0:02:19]}  Rxf7 {[%clk 0:01:51]} 18. Bxf7+ {[%clk 0:02:19]}  Kxf7 {[%clk 0:01:51]} 19. Bxe5+ {[%clk 0:02:14]}  Kg8 {[%clk 0:01:23]} 20. Qd5+ {[%clk 0:01:50]}  Kf8 {[%clk 0:01:23]} 21. Rd3 {[%clk 0:01:50]}  Nxe5 {[%clk 0:01:17]} 22. Qxe5 {[%clk 0:01:48]}  Kg8 {[%clk 0:00:54]} 23. Rad1 {[%clk 0:01:45]}  Qe8 {[%clk 0:00:48]} 24. Qg5 {[%clk 0:01:24]}  Qf7 {[%clk 0:00:43]} 25. Rd8+ {[%clk 0:01:19]}  Rxd8 {[%clk 0:00:40]} 26. Rxd8+ {[%clk 0:01:20]}  Kg7 {[%clk 0:00:40]} 27. Qe5+ {[%clk 0:01:20]}  Kh6 {[%clk 0:00:38]} 28. Rd2 {[%clk 0:01:14]}  Qc4 {[%clk 0:00:18]} 29. b4 {[%clk 0:01:04]}  Qg4 {[%clk 0:00:16]} 30. Qg3 {[%clk 0:00:53]}  Qe4 {[%clk 0:00:13]} 31. Rd1 {[%clk 0:00:44]}  Be7 {[%clk 0:00:13]} 32. h3 {[%clk 0:00:35]}  Bg5 {[%clk 0:00:13]} 33. Rd4 {[%clk 0:00:32]}  Qe1+ {[%clk 0:00:13]} 34. Kh2 {[%clk 0:00:33]}  Qc1 {[%clk 0:00:12]} 35. h4 {[%clk 0:00:32]}  Bf6 {[%clk 0:00:11]} 36. Rf4 {[%clk 0:00:28]}  Be5 {[%clk 0:00:00]} 37. Qg5+ {[%clk 0:00:28]} 1-0


[Site "https://www.chess.com"]

[Event "Titled Tuesday Blitz November 07 Late 2023"]
[White "Pavlidou, Ekaterini"]
[Black "Jimenez Almeida, Luis David"]
[WhiteFideId "4213262"]
[BlackFideId "22242244"]
[WhiteElo "2334"]
[BlackElo "2561"]
[Result "1-0"]
[Round "3"]
[TimeControl "180+1"]
[Date "2023.11.07"]
[WhiteClock "0:00:23"]
[BlackClock "0:00:00"]
[Board "109"]

1. d4 {[%clk 0:03:00]}  g6 {[%clk 0:02:59]} 2. e4 {[%clk 0:02:58]}  Bg7 {[%clk 0:02:59]} 3. Be3 {[%clk 0:02:58]}  d6 {[%clk 0:02:59]} 4. h4 {[%clk 0:02:57]}  h6 {[%clk 0:02:58]} 5. h5 {[%clk 0:02:56]}  g5 {[%clk 0:02:58]} 6. Qd2 {[%clk 0:02:47]}  Nd7 {[%clk 0:02:50]} 7. c4 {[%clk 0:02:45]}  c5 {[%clk 0:02:49]} 8. d5 {[%clk 0:02:44]}  Ngf6 {[%clk 0:02:29]} 9. f3 {[%clk 0:02:42]}  a6 {[%clk 0:02:26]} 10. Nc3 {[%clk 0:02:41]}  Qa5 {[%clk 0:02:24]} 11. Nh3 {[%clk 0:02:35]}  b5 {[%clk 0:02:20]} 12. cxb5 {[%clk 0:02:34]}  axb5 {[%clk 0:02:19]} 13. Bxb5 {[%clk 0:02:33]}  Ba6 {[%clk 0:02:19]} 14. Bc6 {[%clk 0:02:32]}  Rb8 {[%clk 0:02:16]} 15. a4 {[%clk 0:02:04]}  O-O {[%clk 0:02:11]} 16. Nb5 {[%clk 0:01:44]}  Qxd2+ {[%clk 0:01:46]} 17. Bxd2 {[%clk 0:01:39]}  Ne5 {[%clk 0:01:47]} 18. Nf2 {[%clk 0:01:29]}  Nxc6 {[%clk 0:01:31]} 19. dxc6 {[%clk 0:01:29]}  Bxb5 {[%clk 0:01:31]} 20. axb5 {[%clk 0:01:28]}  Rxb5 {[%clk 0:01:32]} 21. Bc3 {[%clk 0:01:25]}  Rc8 {[%clk 0:01:31]} 22. Ra6 {[%clk 0:01:24]}  Ne8 {[%clk 0:01:16]} 23. Nd1 {[%clk 0:01:19]}  Bxc3+ {[%clk 0:01:07]} 24. Nxc3 {[%clk 0:01:11]}  Rxb2 {[%clk 0:01:06]} 25. O-O {[%clk 0:01:11]}  Nc7 {[%clk 0:01:02]} 26. Ra7 {[%clk 0:01:11]}  Kf8 {[%clk 0:00:59]} 27. Nd5 {[%clk 0:01:02]}  Ne6 {[%clk 0:00:57]} 28. c7 {[%clk 0:00:49]}  Nd4 {[%clk 0:00:43]} 29. Rf2 {[%clk 0:00:44]}  Rb1+ {[%clk 0:00:35]} 30. Kh2 {[%clk 0:00:41]}  e6 {[%clk 0:00:34]} 31. Rfa2 {[%clk 0:00:29]}  Kg7 {[%clk 0:00:07]} 32. Ne7 {[%clk 0:00:28]}  Rxc7 {[%clk 0:00:03]} 33. Rxc7 {[%clk 0:00:27]}  Kf6 {[%clk 0:00:04]} 34. Ng8+ {[%clk 0:00:26]}  Kg7 {[%clk 0:00:04]} 35. Ne7 {[%clk 0:00:26]}  Kf6 {[%clk 0:00:04]} 36. Nc6 {[%clk 0:00:26]}  Nb5 {[%clk 0:00:03]} 37. Rb7 {[%clk 0:00:25]}  Nc3 {[%clk 0:00:02]} 38. Rxb1 {[%clk 0:00:24]}  Nxa2 {[%clk 0:00:00]} 39. Rd1 {[%clk 0:00:23]} 1-0


[Site "https://www.chess.com"]